fUST/lending_fUST_20250921
["ID","MTS","AMOUNT","RATE_DAILY","PERIOD"]
[386597633,1758413434085,-151.0,0.00020412,2]
[386597634,1758413434095,-20006.03981059,0.00020413,2]
[386597635,1758413434105,-151.0,0.00020413,2]
[386597636,1758413434115,-151.0,0.00020413,2]
[386597637,1758413434124,-151.0,0.00020413,2]
[386597638,1758413434134,-157.139,0.00020472,2]
[386597639,1758413434144,-500.0,0.00020473,2]
[386597640,1758413434154,-500.0,0.00020473,2]
[386597641,1758413434164,-500.0,0.00020473,2]
[386597643,1758413434173,-500.0,0.00020473,2]
[386597645,1758413434182,-500.0,0.00020473,2]
[386597647,1758413434192,-500.0,0.00020473,2]
[386597649,1758413434201,-500.0,0.00020473,2]
[386597651,1758413434211,-500.0,0.00020473,2]
[386597653,1758413434220,-500.0,0.00020473,2]
[386597655,1758413434230,-500.0,0.00020473,2]
[386597657,1758413434239,-500.0,0.00020473,2]
[386597659,1758413434248,-500.0,0.00020473,2]
[386597661,1758413434257,-323.41357116,0.00020473,2]
[386597663,1758413434267,-500.0,0.00020473,2]
[386597665,1758413434276,-500.0,0.00020473,2]
[386597667,1758413434285,-451.42167932,0.00020473,2]
[386597668,1758413434295,-500.0,0.00020473,2]
[386597670,1758413434304,-500.0,0.00020473,2]
[386597672,1758413434314,-500.0,0.00020473,2]
[386597674,1758413434323,-344.79616114,0.00020473,2]
[386597676,1758413434333,-500.0,0.00020473,2]
[386597678,1758413434343,-495.9798274,0.00020473,2]
[386597680,1758413434352,-500.0,0.00020473,2]
[386597682,1758413434361,-500.0,0.00020473,2]
[386597684,1758413434371,-500.0,0.00020473,2]
[386597686,1758413434380,-500.0,0.00020473,2]
[386597688,1758413434390,-503.52506841,0.00020473,2]
[386597690,1758413434400,-500.0,0.00020473,2]
[386597692,1758413434409,-323.39741329,0.00020473,2]
[386597694,1758413434419,-500.0,0.00020473,2]
[386597696,1758413434428,-500.0,0.00020473,2]
[386597698,1758413434437,-500.0,0.00020473,2]
[386597700,1758413434447,-500.0,0.00020473,2]
[386597702,1758413434456,-500.0,0.00020473,2]
[386597704,1758413434465,-506.33177552,0.00020473,2]
[386597706,1758413434475,-500.0,0.00020473,2]
[386597708,1758413434487,-500.0,0.00020473,2]
[386597710,1758413434496,-504.8700828,0.00020473,2]
[386597712,1758413434505,-500.0,0.00020473,2]
[386597714,1758413434514,-500.0,0.00020473,2]
[386597716,1758413434524,-500.0,0.00020473,2]
[386597718,1758413434533,-500.0,0.00020473,2]
[386597720,1758413434542,-151.0,0.00020473,2]
[386597721,1758413434554,-151.0,0.00020473,2]
[386597723,1758413434563,-151.0,0.00020473,2]
[386597725,1758413434572,-151.0,0.00020473,2]
[386597727,1758413434581,-151.0,0.00020473,2]
[386597729,1758413434590,-151.0,0.00020473,2]
[386597731,1758413434600,-151.0,0.00020473,2]
[386597733,1758413434609,-151.0,0.00020473,2]
[386597735,1758413434619,-151.0,0.00020473,2]
[386597737,1758413434628,-151.0,0.00020473,2]
[386597739,1758413434637,-253.050953,0.00020473,2]
[386597741,1758413434647,-151.0,0.00020473,2]
[386597743,1758413434658,-480.0,0.00020494,2]
[386597745,1758413434667,-680.69,0.00020494,2]
[386597747,1758413434677,-666.23,0.00020494,2]
[386597749,1758413434688,-35158.75389815,0.000205,2]
[386597752,1758413434705,-956.23404994,0.000205,2]
[386597754,1758413434716,-1797.96184021,0.000205,2]
[386597756,1758413434727,-320.03939883,0.000205,2]
[386597758,1758413434740,-18978.82184013,0.000205,2]
[386597760,1758413434751,-26000.94014921,0.000205,2]
[386597762,1758413434762,-18527.9411276,0.000205,2]
[386598109,1758413438355,-200.0,0.00019865,10]
[386598111,1758413438364,-200.0,0.00019865,10]
[386598113,1758413438374,-446.677129,0.00020412,2]
[386598115,1758413438384,-446.677129,0.00020412,2]
[386598118,1758413438394,-446.677129,0.00020412,2]
[386598120,1758413438405,-446.677129,0.00020412,2]
[386598122,1758413438415,-151.0,0.00020413,2]
[386598124,1758413438424,-24449.50549438,0.000205,2]
[386598126,1758413438436,-1214.67976761,0.000205,2]
[386598128,1758413438448,-12028.3028119,0.000205,2]
[386598130,1758413438460,-3150.64721254,0.000205,2]
[386598132,1758413438469,-480.0,0.000205,2]
[386598134,1758413438479,-154.290052,0.000205,2]
[386598136,1758413438488,-128.53490946,0.000205,2]
[386598138,1758413438499,-22.46509054,0.000205,2]
[386598140,1758413438508,-151.0,0.000205,2]
[386598143,1758413438518,-287.897335,0.000205,2]
[386598146,1758413438529,-151.0,0.000205,2]
[386598149,1758413438538,-151.0,0.000205,2]
[386598152,1758413438548,-25.64975953,0.000205,2]
[386598154,1758413438560,-421.02736947,0.000205,2]
[386598156,1758413438570,-92.67051435,0.000205,2]
[386598159,1758413438582,-354.00661465,0.000205,2]
[386598161,1758413438591,-446.677129,0.000205,2]
[386598163,1758413438601,-181.91625635,0.000205,2]
[386598165,1758413438613,-264.76087265,0.000205,2]
[386598167,1758413438623,-500.0,0.00020512,2]
[386598169,1758413438633,-282.71377521,0.00020512,2]
[386598171,1758413438643,-480.0,0.00020512,2]
[386598173,1758413438652,-1416.4,0.00020512,2]
[386598175,1758413438661,-551.46,0.00020512,2]
[386598177,1758413438671,-810.24,0.00020512,2]
[386598179,1758413438680,-656.18,0.00020512,2]
[386598181,1758413438693,-480.0,0.00020512,2]
[386598183,1758413438702,-796.97,0.00020512,2]
[386598194,1758413438798,-752.18646563,0.00020512,2]
[386598196,1758413438810,-825.50353437,0.00020512,2]
[386598198,1758413438819,-715.56,0.00020512,2]
[386598200,1758413438828,-500.0,0.00020512,2]
[386598202,1758413438837,-286.0,0.00020565,2]
[386598204,1758413438847,-286.0,0.00020577,2]
[386598206,1758413438857,-286.0,0.00020579,2]
[386598208,1758413438867,-1031.53,0.0002061,2]
[386598210,1758413438877,-69.40646563,0.00020611,2]
[386598212,1758413438889,-410.59353437,0.00020611,2]
[386598214,1758413438898,-480.0,0.00020611,2]
[386598216,1758413438908,-585.95,0.00020611,2]
[386598218,1758413438918,-690.17,0.00020611,2]
[386598220,1758413438927,-182.59805893,0.00020611,2]
[386598222,1758413438939,-297.40194107,0.00020611,2]
[386598224,1758413438948,-480.0,0.00020612,2]
[386598226,1758413438957,-785.48,0.00020612,2]
[386598228,1758413438967,-334.05956821,0.00020612,2]
[386598231,1758413438978,-145.94043179,0.00020612,2]
[386598233,1758413438987,-565.86280572,0.00020612,2]
[386598235,1758413438998,-405.35719428,0.00020612,2]
[386598237,1758413439007,-480.0,0.00020612,2]
[386598239,1758413439016,-1359.0,0.00020612,2]
[386598241,1758413439025,-3019.7,0.00020612,2]
[386598243,1758413439036,-5649.43,0.00020612,2]
[386598245,1758413439045,-286.0,0.00020628,2]
[386598247,1758413439054,-1093.08,0.00020686,2]
[386598249,1758413439064,-480.0,0.00020686,2]
[386598251,1758413439073,-675.63,0.00020686,2]
[386598252,1758413439082,-973.24,0.00020686,2]
[386598254,1758413439091,-480.0,0.00020686,2]
[386598256,1758413439100,-706.71,0.00020686,2]
[386598258,1758413439110,-480.0,0.00020686,2]
[386598260,1758413439119,-480.0,0.00020686,2]
[386598262,1758413439128,-153.418093,0.00020744,14]
[386598264,1758413439138,-286.0,0.00020748,2]
[386598266,1758413439147,-480.0,0.00020768,2]
[386598268,1758413439156,-680.69,0.00020768,2]
[386598270,1758413439165,-666.23,0.00020768,2]
[386598272,1758413439175,-500.0,0.00020786,2]
[386598274,1758413439184,-480.0,0.00020786,2]
[386598276,1758413439193,-1416.4,0.00020786,2]
[386598279,1758413439204,-551.46,0.00020786,2]
[386598281,1758413439213,-810.24,0.00020786,2]
[386598282,1758413439222,-656.18,0.00020786,2]
[386598285,1758413439232,-175.19660952,0.00020786,2]
[386598286,1758413439242,-480.0,0.00020786,2]
[386598288,1758413439252,-796.97,0.00020786,2]
[386598289,1758413439262,-1577.69,0.00020786,2]
[386598290,1758413439271,-715.56,0.00020786,2]
[386598291,1758413439281,-500.0,0.00020786,2]
[386598292,1758413439290,-286.0,0.00020793,2]
[386598293,1758413439300,-168.0,0.00020861,2]
[386598294,1758413439311,-1031.53,0.00020884,2]
[386598295,1758413439321,-480.0,0.00020885,2]
[386598296,1758413439331,-480.0,0.00020885,2]
[386598297,1758413439341,-585.95,0.00020885,2]
[386598298,1758413439352,-690.17,0.00020885,2]
[386598300,1758413439363,-480.0,0.00020885,2]
[386598302,1758413439372,-446.677129,0.00020885,2]
[386598304,1758413439382,-446.677129,0.00020885,2]
[386598306,1758413439392,-446.677129,0.00020885,2]
[386598308,1758413439401,-446.677129,0.00020885,2]
[386598310,1758413439412,-480.0,0.00020886,2]
[386598312,1758413439422,-785.48,0.00020886,2]
[386598314,1758413439433,-239.71439855,0.00020886,2]
[386598316,1758413439443,-971.22,0.00020886,2]
[386598318,1758413439453,-480.0,0.00020886,2]
[386598320,1758413439463,-1359.0,0.00020886,2]
[386598322,1758413439472,-3019.7,0.00020886,2]
[386598324,1758413439482,-5649.43,0.00020886,2]
[386598326,1758413439491,-183.25564436,0.00020913,2]
[386598328,1758413439500,-168.0,0.00020926,2]
[386598330,1758413439510,-286.0,0.00020931,2]
[386598332,1758413439520,-977.0,0.00020942,2]
[386598334,1758413439529,-2158.0,0.00020942,2]
[386598336,1758413439539,-634.0,0.00020942,2]
[386598338,1758413439549,-1093.08,0.0002096,2]
[386598340,1758413439559,-480.0,0.0002096,2]
[386598342,1758413439569,-675.63,0.0002096,2]
[386598344,1758413439578,-973.24,0.0002096,2]
[386598346,1758413439588,-480.0,0.0002096,2]
[386598348,1758413439597,-706.71,0.0002096,2]
[386598350,1758413439609,-480.0,0.0002096,2]
[386598352,1758413439618,-480.0,0.0002096,2]
[386598354,1758413439627,-10672.31030848,0.00020972,2]
[386598356,1758413439637,-251.338,0.00021003,2]
[386598358,1758413439647,-385.59725749,0.00021021,2]
[386598360,1758413439656,-500.0,0.00021021,2]
[386598362,1758413439665,-1000.0,0.00021021,2]
[386598364,1758413439675,-1000.0,0.00021021,2]
[386598366,1758413439684,-815.87719731,0.00021021,2]
[386598369,1758413439699,-184.12280269,0.00021021,2]
[386598372,1758413439708,-1000.0,0.00021021,2]
[386598374,1758413439717,-1000.0,0.00021021,2]
[386598376,1758413439727,-1000.0,0.00021021,2]
[386598378,1758413439738,-1000.0,0.00021021,2]
[386598380,1758413439747,-1000.0,0.00021021,2]
[386598382,1758413439757,-1000.0,0.00021021,2]
[386598385,1758413439770,-500.0,0.00021021,2]
[386598387,1758413439780,-500.0,0.00021021,2]
[386598388,1758413439789,-1000.0,0.00021021,2]
[386598391,1758413439799,-1000.0,0.00021021,2]
[386598394,1758413439808,-1000.0,0.00021021,2]
[386598397,1758413439818,-1000.0,0.00021021,2]
[386598400,1758413439827,-1000.0,0.00021021,2]
[386598403,1758413439836,-501.18299892,0.00021021,2]
[386598406,1758413439846,-327.86990066,0.00021021,2]
[386598409,1758413439857,-688.84353114,0.00021021,2]
[386598412,1758413439866,-1000.0,0.00021021,2]
[386598415,1758413439875,-500.0,0.00021021,2]
[386598418,1758413439885,-1000.0,0.00021021,2]
[386598421,1758413439894,-1000.0,0.00021021,2]
[386598424,1758413439903,-1000.0,0.00021021,2]
[386598427,1758413439912,-480.0,0.00021042,2]
[386598429,1758413439921,-680.69,0.00021042,2]
[386598432,1758413439931,-666.23,0.00021042,2]
[386598434,1758413439940,-500.0,0.0002106,2]
[386598438,1758413439950,-480.0,0.0002106,2]
[386598441,1758413439960,-500.0,0.0002106,2]
[386598444,1758413439970,-1416.4,0.0002106,2]
[386598447,1758413439980,-551.46,0.0002106,2]
[386598452,1758413439991,-810.24,0.0002106,2]
[386598454,1758413440004,-656.18,0.0002106,2]
[386598458,1758413440015,-480.0,0.0002106,2]
[386598460,1758413440025,-796.97,0.0002106,2]
[386598464,1758413440034,-1577.69,0.0002106,2]
[386598467,1758413440044,-682.12704141,0.0002106,2]
[386598470,1758413440056,-33.43295859,0.0002106,2]
[386598473,1758413440065,-286.0,0.0002106,2]
[386598476,1758413440075,-151.0,0.000211,4]
[386598479,1758413440085,-168.0,0.00021129,2]
[386598482,1758413440095,-1031.53,0.00021158,2]
[386598485,1758413440107,-480.0,0.00021159,2]
[386598488,1758413440116,-480.0,0.00021159,2]
[386598491,1758413440125,-585.95,0.00021159,2]
[386598494,1758413440134,-690.17,0.00021159,2]
[386598497,1758413440143,-480.0,0.00021159,2]
[386598500,1758413440154,-480.0,0.0002116,2]
[386598503,1758413440164,-785.48,0.0002116,2]
[386598506,1758413440173,-971.22,0.0002116,2]
[386598509,1758413440183,-480.0,0.0002116,2]
[386598512,1758413440193,-228.64692989,0.0002116,2]
[386598525,1758413440257,690.7676,0.00027,120]
[386598580,1758413440526,-0.08849102,0.00020064,2]
[386598602,1758413440649,-479.91150898,0.00020064,2]
[386598605,1758413440658,-480.0,0.00020338,2]
[386598608,1758413440668,-480.0,0.00020612,2]
[386598611,1758413440677,-164.27,0.00020876,10]
[386598614,1758413440688,-1130.35307011,0.0002116,2]
[386598617,1758413440704,-3019.7,0.0002116,2]
[386598620,1758413440713,-5649.43,0.0002116,2]
[386598623,1758413440723,-446.677129,0.0002116,2]
[386598626,1758413440732,-446.677129,0.0002116,2]
[386598628,1758413440742,-446.677129,0.0002116,2]
[386598631,1758413440751,-446.677129,0.0002116,2]
[386598633,1758413440760,-174.61919141,0.00021234,2]
[386598635,1758413440770,-480.0,0.00021234,2]
[386598637,1758413440779,-675.63,0.00021234,2]
[386598639,1758413440788,-973.24,0.00021234,2]
[386598641,1758413440797,-480.0,0.00021234,2]
[386598643,1758413440808,-706.71,0.00021234,2]
[386598645,1758413440817,-480.0,0.00021234,2]
[386598647,1758413440826,-480.0,0.00021234,2]
[386598649,1758413440836,-500.0,0.00021267,2]
[386598651,1758413440845,-190.3614948,0.00021267,2]
[386598653,1758413440856,-500.0,0.00021267,2]
[386598655,1758413440866,-500.0,0.00021267,2]
[386598657,1758413440875,-500.0,0.00021267,2]
[386598659,1758413440884,-500.0,0.00021267,2]
[386598660,1758413440893,-500.0,0.00021267,2]
[386598662,1758413440902,-591.4454328,0.00021267,2]
[386598664,1758413440912,-286.0,0.00021284,2]
[386598676,1758413441006,-2737.65,0.00021294,2]
[386598678,1758413441016,-480.0,0.00021316,2]
[386598680,1758413441026,-680.69,0.00021316,2]
[386598682,1758413441035,-666.23,0.00021316,2]
[386598684,1758413441045,-500.0,0.00021334,2]
[386598686,1758413441054,-500.0,0.00021334,2]
[386598688,1758413441063,-480.0,0.00021334,2]
[386598690,1758413441073,-1416.4,0.00021334,2]
[386598692,1758413441082,-551.46,0.00021334,2]
[386598694,1758413441095,-357.24751204,0.00021334,2]
[386598696,1758413441107,-267.0,0.00021334,2]
[386598698,1758413441119,-185.99248796,0.00021334,2]
[386598700,1758413441128,-656.18,0.00021334,2]
[386598702,1758413441137,-480.0,0.00021334,2]
[386598704,1758413441147,-796.97,0.00021334,2]
[386598706,1758413441156,-1577.69,0.00021334,2]
[386598708,1758413441166,-715.56,0.00021334,2]
[386598710,1758413441175,-500.0,0.00021394,2]
[386598712,1758413441185,-500.0,0.00021394,2]
[386598714,1758413441194,-500.0,0.00021394,2]
[386598716,1758413441203,-500.0,0.00021394,2]
[386598718,1758413441213,-508.76632959,0.00021394,2]
[386598720,1758413441222,-500.0,0.00021394,2]
[386598722,1758413441233,-500.0,0.00021394,2]
[386598724,1758413441242,-500.0,0.00021394,2]
[386598726,1758413441251,-500.0,0.00021394,2]
[386598728,1758413441261,-157.70921839,0.00021394,2]
[386598730,1758413441271,-406.13618103,0.00021394,2]
[386598732,1758413441280,-500.0,0.00021394,2]
[386598734,1758413441290,-500.0,0.00021394,2]
[386598736,1758413441299,-500.0,0.00021394,2]
[386598738,1758413441308,-500.0,0.00021394,2]
[386598740,1758413441317,-500.0,0.00021394,2]
[386598742,1758413441327,-500.0,0.00021394,2]
[386598744,1758413441336,-500.0,0.00021394,2]
[386598746,1758413441346,-500.0,0.00021394,2]
[386598748,1758413441356,-500.0,0.00021394,2]
[386598750,1758413441365,-500.0,0.00021394,2]
[386598752,1758413441375,-500.0,0.00021394,2]
[386598754,1758413441385,-500.0,0.00021394,2]
[386598756,1758413441394,-500.0,0.00021394,2]
[386598758,1758413441404,-500.0,0.00021394,2]
[386598761,1758413441415,-500.0,0.00021394,2]
[386598763,1758413441424,-500.0,0.00021394,2]
[386598764,1758413441433,-500.0,0.00021394,2]
[386598767,1758413441443,-500.0,0.00021394,2]
[386598769,1758413441454,-500.0,0.00021394,2]
[386598771,1758413441464,-500.0,0.00021394,2]
[386598773,1758413441473,-286.0,0.00021403,2]
[386598775,1758413441482,-500.0,0.00021422,2]
[386598777,1758413441491,-500.0,0.00021422,2]
[386598779,1758413441500,-1531.0,0.00021427,2]
[386598781,1758413441512,-1031.53,0.00021432,2]
[386598783,1758413441521,-480.0,0.00021433,2]
[386598785,1758413441530,-480.0,0.00021433,2]
[386598787,1758413441542,-585.95,0.00021433,2]
[386598789,1758413441551,-690.17,0.00021433,2]
[386598791,1758413441560,-480.0,0.00021433,2]
[386598793,1758413441570,-1686.77137098,0.00021434,2]
[386598795,1758413441579,-480.0,0.00021434,2]
[386598797,1758413441590,-150.0,0.00021434,2]
[386598799,1758413441600,-785.48,0.00021434,2]
[386598801,1758413441609,-971.22,0.00021434,2]
[386598803,1758413441619,-480.0,0.00021434,2]
[386598805,1758413441628,-1359.0,0.00021434,2]
[386598807,1758413441638,-3019.7,0.00021434,2]
[386598809,1758413441647,-5649.43,0.00021434,2]
[386598811,1758413441657,-286.0,0.00021454,2]
[386598813,1758413441666,-500.0,0.0002148,2]
[386598815,1758413441675,-500.0,0.0002148,2]
[386598817,1758413441684,-500.0,0.0002148,2]
[386598819,1758413441698,-500.0,0.0002148,2]
[386598821,1758413441707,-174.96649909,0.0002148,2]
[386598823,1758413441716,-500.0,0.0002148,2]
[386598825,1758413441726,-257.65425036,0.0002148,2]
[386598827,1758413441738,-160.12337418,0.0002148,2]
[386598829,1758413441747,-500.0,0.0002148,2]
[386598831,1758413441757,-500.0,0.0002148,2]
[386598833,1758413441767,-500.0,0.0002148,2]
[386598835,1758413441777,-500.0,0.0002148,2]
[386598837,1758413441786,-500.0,0.0002148,2]
[386598839,1758413441796,-500.81727454,0.0002148,2]
[386598841,1758413441805,-500.0,0.00021494,2]
[386598843,1758413441814,-500.0,0.00021494,2]
[386598845,1758413441823,-500.0,0.00021494,2]
[386598847,1758413441833,-238.13486899,0.00021494,2]
[386598849,1758413441842,-430.31380382,0.00021494,2]
[386598851,1758413441852,-500.0,0.00021494,2]
[386598853,1758413441862,-446.677129,0.00021496,2]
[386598855,1758413441872,-446.677129,0.00021496,2]
[386598857,1758413441882,-446.677129,0.00021496,2]
[386598859,1758413441891,-446.67713,0.00021496,2]
[386598861,1758413441901,-480.0,0.00021508,2]
[386598863,1758413441910,-300.53318672,0.00021508,2]
[386599039,1758413443594,-480.0,0.00020886,2]
[386599041,1758413443605,-829.60459778,0.00020903,2]
[386599305,1758413446383,-678.92998736,0.00020903,2]
[386599312,1758413446428,-3627.32323461,0.00020903,2]
[386599316,1758413446461,-621.74251151,0.00020903,2]
[386599320,1758413446495,-342.55454446,0.00020903,2]
[386599334,1758413446624,-6046.22273147,0.00020903,2]
[386599337,1758413446634,-410.0,0.00020993,2]
[386599341,1758413446644,-480.0,0.0002116,2]
[386599344,1758413446655,-480.0,0.00021434,2]
[386599347,1758413446665,-375.09681328,0.00021508,2]
[386599349,1758413446674,-973.24,0.00021508,2]
[386599351,1758413446683,-480.0,0.00021508,2]
[386599353,1758413446695,-706.71,0.00021508,2]
[386599355,1758413446704,-293.86043028,0.00021508,2]
[386599357,1758413446714,-480.0,0.00021508,2]
[386599359,1758413446723,-286.0,0.00021555,2]
[386599361,1758413446733,-500.0,0.00021565,2]
[386599363,1758413446742,-500.0,0.00021568,2]
[386599365,1758413446751,-500.0,0.00021568,2]
[386599367,1758413446761,-500.0,0.00021568,2]
[386599369,1758413446770,-500.0,0.00021568,2]
[386599371,1758413446779,-500.0,0.00021568,2]
[386599373,1758413446788,-1500.0,0.00021568,2]
[386599375,1758413446798,-715.3813452,0.00021568,2]
[386599377,1758413446807,-1500.0,0.00021568,2]
[386599378,1758413446817,-1500.0,0.00021568,2]
[386599380,1758413446827,-1106.69602647,0.00021568,2]
[386599382,1758413446836,-1500.0,0.00021568,2]
[386599384,1758413446846,-1500.0,0.00021568,2]
[386599386,1758413446855,-1500.0,0.00021568,2]
[386599388,1758413446865,-1000.0,0.00021568,2]
[386599390,1758413446874,-510.98863345,0.00021568,2]
[386599392,1758413446884,-1500.0,0.00021568,2]
[386599394,1758413446893,-1500.0,0.00021568,2]
[386599396,1758413446903,-1037.9384467,0.00021568,2]
[386599398,1758413446912,-1500.0,0.00021568,2]
[386599400,1758413446921,-1500.0,0.00021568,2]
[386599402,1758413446931,-160.0,0.00021578,2]
[386599404,1758413446941,-680.69,0.0002159,2]
[386599406,1758413446950,-666.23,0.0002159,2]
[386599408,1758413446960,-500.0,0.00021608,2]
[386599410,1758413446970,-500.0,0.00021608,2]
[386599412,1758413446979,-480.0,0.00021608,2]
[386599414,1758413446988,-1416.4,0.00021608,2]
[386599416,1758413446998,-551.46,0.00021608,2]
[386599418,1758413447007,-810.24,0.00021608,2]
[386599420,1758413447017,-656.18,0.00021608,2]
[386599422,1758413447026,-390.8127716,0.00021608,2]
[386599424,1758413447036,-796.97,0.00021608,2]
[386599426,1758413447045,-1577.69,0.00021608,2]
[386599428,1758413447054,-715.56,0.00021608,2]
[386599430,1758413447064,-181.0,0.00021632,2]
[386599432,1758413447075,-1200.0,0.00021633,2]
[386599434,1758413447084,-255.0,0.00021633,2]
[386599436,1758413447097,-1031.53,0.00021706,2]
[386599438,1758413447108,-480.0,0.00021707,2]
[386599440,1758413447118,-480.0,0.00021707,2]
[386599442,1758413447127,-585.95,0.00021707,2]
[386599444,1758413447136,-690.17,0.00021707,2]
[386599446,1758413447146,-480.0,0.00021707,2]
[386599448,1758413447155,-480.0,0.00021708,2]
[386599461,1758413447262,-785.48,0.00021708,2]
[386599463,1758413447272,-971.22,0.00021708,2]
[386599465,1758413447282,-480.0,0.00021708,2]
[386599467,1758413447292,-1359.0,0.00021708,2]
[386599469,1758413447302,-3019.7,0.00021708,2]
[386599470,1758413447313,-480.0,0.00021708,2]
[386599472,1758413447323,-286.0,0.00021714,2]
[386599475,1758413447333,-1680.0,0.00021736,2]
[386599477,1758413447342,-211.74258702,0.00021753,5]
[386599478,1758413447352,-222.35239749,0.00021782,2]
[386601406,1758413479821,-850.09,0.00019432,2]
[386601423,1758413522811,300.0,0.00019764,2]
[386601424,1758413536486,492.0,0.00019764,2]
[386601425,1758413552689,839.27,0.0001951,2]
[386601426,1758413560210,197.42038875,0.00019764,2]
[386601427,1758413560405,232.80943419,0.00019764,2]
[386601428,1758413561430,500.0,0.00019764,2]
[386601429,1758413561524,427.53169916,0.00019764,2]
[386601430,1758413561620,317.90781871,0.00019764,2]
[386601431,1758413561714,389.9154197,0.00019764,2]
[386601432,1758413561800,194.91358413,0.00019764,2]
[386601433,1758413561908,500.0,0.00019764,2]
[386601434,1758413562012,500.0,0.00019764,2]
[386601435,1758413562105,500.0,0.00019764,2]
[386601436,1758413562205,500.0,0.00019764,2]
[386601437,1758413562302,500.0,0.00019764,2]
[386601438,1758413562401,500.0,0.00019764,2]
[386601439,1758413582985,300.0,0.00019764,2]
[386601440,1758413637418,-214.44420968,0.00019482,2]
[386601441,1758413639481,-195.39741264,0.00019482,2]
[386601442,1758413641599,-220.44757262,0.00019482,2]
[386601443,1758413645079,-192.20953861,0.00019482,2]
[386601444,1758413646649,-6.09126645,0.00019482,2]
[386601446,1758413700276,-1902.42492854,0.00019665,2]
[386601447,1758413700669,-3804.84985708,0.00019665,2]
[386601448,1758413700779,-1393.70208412,0.00019665,2]
[386601450,1758413718010,-996.60820172,0.00019665,2]
[386601451,1758413718128,-236.67082935,0.00019764,2]
[386601452,1758413718234,-483.11201322,0.00019764,2]
[386601453,1758413718342,-720.0,0.00019764,2]
[386601454,1758413718452,-160.0,0.00019765,2]
[386601455,1758413719081,-4807.22791142,0.00019765,2]
[386601456,1758413719715,-225.54873355,0.00019448,2]
[386601457,1758413722826,-194.09381965,0.00019448,2]
[386601458,1758413724733,-449.4974468,0.00019448,2]
[386601460,1758413769134,366.22978492,0.00019764,2]
[386601461,1758413809147,480.0,0.00019764,2]
[386601462,1758413810902,858.08,0.0001942,2]
[386601464,1758413836610,480.0,0.00019764,2]
[386601465,1758413847913,480.0,0.00019764,2]
[386601466,1758413852119,520.58,0.00019764,2]
[386601467,1758413877114,189.188084,0.00018923,2]
[386601468,1758413878619,214.16,0.00019755,3]
[386601469,1758413893017,847.16,0.00019444,2]
[386601470,1758413936312,1014.29,0.00019764,2]
[386601471,1758413953984,4550.32213108,0.00019665,2]
[386601472,1758413954089,848.06791656,0.00019665,2]
[386601473,1758413954669,480.0,0.00019764,2]
[386601474,1758413959644,480.0,0.00019764,2]
[386601475,1758413973642,620.96,0.00019764,2]
[386601476,1758413974491,843.33,0.0001948,2]
[386601477,1758413991330,861.85,0.00019764,2]
[386601478,1758414005428,480.0,0.00019764,2]
[386601479,1758414017165,168.3888056,0.00019765,2]
[386601480,1758414026118,-5217.41327784,0.00019765,2]
[386601481,1758414036176,-480.0,0.00019764,2]